bitfinex-derivatives/quotes_SOLF0:USTF0_20250909
["timestamp","ask_amount","ask_price","bid_price","bid_amount"]
[1757416090266,7.34259117,217.89,217.86,3.78]
[1757416090470,7.34259117,217.89,217.84,4.1306]
[1757416090671,0.03259117,217.89,217.85,3.78]
[1757416090868,7.31,217.88,217.85,3.78]
[1757416091174,0.03259117,217.89,217.85,3.78]
[1757416091668,0.03259117,217.89,217.84,4.1306]
[1757416091975,0.03259117,217.89,217.85,3.78]
[1757416092472,0.03259117,217.89,217.84,4.1306]
[1757416092673,7.34259117,217.89,217.84,4.1306]
[1757416092875,7.34259117,217.89,217.86,3.78]
[1757416094074,7.34259117,217.89,217.85,3.78]
[1757416094269,0.03259117,217.89,217.84,4.1306]
[1757416094470,0.03259117,217.89,217.85,3.78]
[1757416095269,0.03259117,217.89,217.84,4.1306]
[1757416095476,0.03259117,217.89,217.85,3.78]
[1757416096369,0.03259117,217.89,217.84,4.1306]
[1757416096771,0.03259117,217.89,217.85,3.78]
[1757416097272,0.03259117,217.89,217.84,4.1306]
[1757416097468,0.03259117,217.89,217.86,3.78]
[1757416097670,0.03259117,217.89,217.84,4.1306]
[1757416097871,0.03259117,217.89,217.85,3.66153787]
[1757416098070,0.03259117,217.89,217.87,3.78]
[1757416098476,7.47259117,217.89,217.87,3.78]
[1757416099178,7.47259117,217.89,217.83,3.78]
[1757416099381,7.44,217.88,217.84,3.66081216]
[1757416099679,0.03259117,217.89,217.83,3.78]
[1757416099871,7.44,217.88,217.83,3.78]
[1757416100072,0.03259117,217.89,217.83,3.78]
[1757416100577,7.44,217.88,217.8,3.78]
[1757416100778,7.44,217.88,217.82,3.78]
[1757416100976,7.44,217.88,217.83,3.66038291]
[1757416101275,7.44,217.88,217.81,3.78]
[1757416101477,7.44,217.88,217.82,3.65978404]
[1757416101779,7.44,217.94,217.83,3.65978404]
[1757416102074,0.03058838,217.87,217.82,3.78]
[1757416102280,0.03058838,217.87,217.83,3.65972842]
[1757416102476,0.03058838,217.87,217.81,3.78]
[1757416102676,0.03058838,217.87,217.83,3.78]
[1757416102876,0.03058838,217.87,217.81,3.78]
[1757416103073,0.03058838,217.87,217.83,3.78]
[1757416103378,0.03058838,217.87,217.82,4.131]
[1757416103575,0.03058838,217.87,217.84,3.78]
[1757416104774,0.03058838,217.87,217.83,3.0140564]
[1757416104972,0.03058838,217.87,217.84,3.65865677]
[1757416105275,7.47058838,217.87,217.84,3.78]
[1757416105478,7.44,217.86,217.84,3.78]
[1757416106081,0.03058838,217.87,217.83,3.78]
[1757416106277,7.47058838,217.87,217.8,7.1454564]
[1757416106478,7.47058838,217.87,217.81,7.43836432]
[1757416106775,7.47058838,217.87,217.82,3.65836432]
[1757416106983,7.44,217.86,217.83,7.43836432]
[1757416107277,7.44,217.86,217.83,3.78]
[1757416107474,0.03058838,217.87,217.75,3.85250136]
[1757416107672,7.44,217.86,217.77,3.78]
[1757416107878,7.44,217.86,217.78,3.65830203]
[1757416108178,7.44,217.83,217.8,3.78]
[1757416108583,7.44,217.83,217.77,3.78]
[1757416108783,7.44,217.83,217.78,3.65818204]
[1757416108986,0.03097401,217.84,217.79,3.65818204]
[1757416109182,0.03097401,217.84,217.78,3.78]
[1757416109388,7.47097401,217.84,217.8,3.78]
[1757416109886,7.44,217.83,217.8,3.78]
[1757416112184,0.03097401,217.84,217.78,4.1318]
[1757416112386,0.03097401,217.84,217.79,6.67082961]
[1757416112582,0.03097401,217.84,217.8,3.78]
[1757416112777,0.03097401,217.84,217.83,3.78]
[1757416116688,0.03097401,217.84,217.81,3.78]
[1757416116886,0.03097401,217.84,217.82,3.65705091]
[1757416117085,7.44,217.83,217.77,3.78]
[1757416117291,0.03097401,217.84,217.78,7.43740843]
[1757416117592,7.44,217.83,217.8,3.78]
[1757416117890,7.44,217.83,217.77,3.78]
[1757416118101,7.44,217.83,217.78,3.65786555]
[1757416118297,7.44,217.83,217.77,3.78]
[1757416118500,7.47097401,217.84,217.78,3.65779702]
[1757416118701,7.47097401,217.84,217.77,3.78]
[1757416125303,7.47097401,217.84,217.78,3.65835584]
[1757416125498,7.47097401,217.84,217.77,3.78]
[1757416125702,7.47097401,217.84,217.78,3.6581467]
[1757416125902,7.47097401,217.84,217.77,3.78]
[1757416126098,7.47097401,217.84,217.78,3.65810945]
[1757416126304,7.47097401,217.84,217.77,3.78]
[1757416126802,7.47097401,217.84,217.71,3.78]
[1757416127003,7.47097401,217.84,217.72,3.65964264]
[1757416127199,7.44,217.84,217.73,3.65964264]
[1757416127400,7.44,217.84,217.71,3.78]
[1757416127401,0.03462328,217.8,217.74,3.65956454]
[1757416127598,7.01,217.79,217.71,3.78]
[1757416127801,7.01,217.79,217.72,3.65956454]
[1757416127997,7.01,217.79,217.73,3.65956454]
[1757416128201,7.01,217.79,217.71,7.9131]
[1757416128403,7.01,217.79,217.72,3.65972232]
[1757416128603,7.01,217.79,217.73,3.65972232]
[1757416128803,7.01,217.79,217.71,7.9131]
[1757416129003,7.01,217.79,217.72,3.65972232]
[1757416129205,7.01,217.79,217.73,3.65972232]
[1757416129408,7.01,217.79,217.71,7.9131]
[1757416129608,7.01,217.79,217.72,3.66003488]
[1757416129803,7.01,217.79,217.73,3.66003488]
[1757416130004,7.01,217.79,217.71,7.9131]
[1757416130207,7.01,217.79,217.72,3.66003488]
[1757416130407,7.01,217.79,217.73,3.66003488]
[1757416130608,7.01,217.79,217.71,7.9131]
[1757416130913,7.01,217.79,217.72,3.65987787]
[1757416131208,7.01,217.79,217.73,3.65987787]
[1757416131408,7.01,217.79,217.74,3.65987787]
[1757416131707,7.01,217.79,217.71,7.9131]
[1757416132004,7.01,217.79,217.72,3.660095]
[1757416132309,7.01,217.79,217.73,3.660095]
[1757416132609,7.01,217.79,217.71,7.9131]
[1757416132809,7.01,217.79,217.72,3.6597472]
[1757416133008,7.01,217.79,217.73,3.6597472]
[1757416133208,0.03462328,217.8,217.74,3.65969793]
[1757416133411,7.01,217.79,217.72,3.78]
[1757416133607,7.01,217.79,217.73,3.65899485]
[1757416133807,7.01,217.79,217.72,3.78]
[1757416134003,7.01,217.79,217.73,3.65904392]
[1757416134207,7.01,217.79,217.72,3.78]
[1757416134404,7.01,217.79,217.73,3.65837718]
[1757416134708,7.01,217.79,217.72,3.78]
[1757416134908,7.01,217.79,217.73,3.65842643]
[1757416135105,7.01,217.79,217.72,3.78]
[1757416135306,7.01,217.79,217.73,3.65842643]
[1757416135498,7.01,217.79,217.72,3.78]
[1757416135700,7.01,217.79,217.73,3.65809685]
[1757416135904,7.01,217.79,217.72,3.78]
[1757416136104,7.01,217.79,217.73,3.6580476]
[1757416136412,7.01,217.79,217.72,3.78]
[1757416136608,7.01,217.79,217.73,3.65774549]
[1757416136805,7.01,217.79,217.72,3.78]
[1757416137100,7.01,217.79,217.73,3.65774549]
[1757416137307,7.01,217.79,217.72,3.78]
[1757416139216,7.01,217.79,217.72,7.9129]
[1757416139413,7.01,217.79,217.7,3.0140564]
[1757416139612,0.03462328,217.8,217.74,3.78]
[1757416140113,7.01,217.79,217.7,3.78]
[1757416140414,7.01,217.79,217.71,3.65709088]
[1757416140611,7.01,217.79,217.7,3.78]
[1757416140804,7.01,217.76,217.71,3.65736998]
[1757416141006,7.01,217.76,217.7,3.78]
[1757416141212,7.01,217.76,217.71,3.65744406]
[1757416141408,7.01,217.76,217.7,3.78]
[1757416141606,7.04355462,217.77,217.71,3.65729855]
[1757416141816,7.04355462,217.77,217.7,3.78]
[1757416142018,7.04355462,217.77,217.71,3.65729855]
[1757416142218,7.04355462,217.77,217.7,3.78]
[1757416142418,7.04355462,217.77,217.71,3.65738992]
[1757416142615,7.04355462,217.77,217.7,3.78]
[1757416142819,7.04355462,217.77,217.71,3.65738992]
[1757416143022,7.04355462,217.77,217.7,3.78]
[1757416143321,7.04355462,217.77,217.71,3.6573775]
[1757416143520,7.04355462,217.77,217.7,3.78]
[1757416143716,7.04355462,217.77,217.71,3.65757847]
[1757416143913,7.04355462,217.77,217.7,3.78]
[1757416144119,7.04355462,217.77,217.71,3.65760331]
[1757416144314,7.04355462,217.77,217.68,4.1338]
[1757416144518,7.04355462,217.77,217.69,3.65779616]
[1757416144715,7.04355462,217.77,217.7,3.65779616]
[1757416145021,7.04355462,217.77,217.71,3.65779616]
[1757416145217,7.04355462,217.77,217.7,3.78]
[1757416145423,7.04355462,217.77,217.71,3.65767753]
[1757416145623,7.04355462,217.77,217.7,3.78]
[1757416145820,7.04355462,217.77,217.71,3.65768995]
[1757416146021,7.04355462,217.77,217.7,3.78]
[1757416146222,7.04355462,217.77,217.71,3.65767753]
[1757416146423,7.04355462,217.77,217.7,3.78]
[1757416146617,7.04355462,217.77,217.71,3.65767349]
[1757416146818,0.03355462,217.77,217.71,3.78]
[1757416147219,0.03355462,217.77,217.73,3.78]
[1757416147421,0.03355462,217.77,217.74,3.65771443]
[1757416147722,0.03355462,217.77,217.71,3.78]
[1757416147920,0.03355462,217.77,217.74,3.78]
[1757416148121,0.03355462,217.77,217.73,4.1328]
[1757416148321,0.03355462,217.77,217.75,3.78]
[1757416149222,7.04355462,217.77,217.73,6.7940564]
[1757416149422,7.04355462,217.77,217.74,3.65890204]
[1757416149720,7.04355462,217.77,217.73,6.7940564]
[1757416149921,7.04355462,217.77,217.74,3.65890204]
[1757416150220,7.04355462,217.77,217.73,6.7940564]
[1757416150417,7.01,217.76,217.74,3.65966665]
[1757416150621,7.01,217.76,217.71,3.0140564]
[1757416150822,0.03355462,217.77,217.72,3.65974968]
[1757416151022,7.01,217.76,217.69,6.7940564]
[1757416151223,7.01,217.76,217.7,3.65986474]
[1757416151526,7.01,217.76,217.71,3.65986474]
[1757416151731,7.01,217.76,217.72,3.65986474]
[1757416151927,7.01,217.76,217.69,6.7940564]
[1757416152126,7.01,217.76,217.7,3.66049656]
[1757416152324,7.01,217.76,217.72,1.93129264]
[1757416152626,7.01,217.76,217.73,3.66049656]
[1757416152820,7.01,217.76,217.69,3.78]
[1757416152821,7.01,217.76,217.7,1.93129264]
[1757416153022,7.01,217.76,217.71,3.66146852]
[1757416153223,7.01,217.76,217.7,1.93129264]
[1757416153418,7.46,217.76,217.71,3.66154889]
[1757416153623,7.46,217.76,217.72,1.93129264]
[1757416153824,7.46,217.76,217.73,3.79]
[1757416154631,0.03409503,217.77,217.72,1.93129264]
[1757416155331,7.46,217.76,217.73,3.66166663]
[1757416155628,0.03409503,217.77,217.72,1.93129264]
[1757416155821,7.46,217.76,217.73,3.66166663]
[1757416156022,0.03409503,217.77,217.72,1.93129264]
[1757416156225,0.03409503,217.77,217.73,3.66166663]
[1757416156534,7.46,217.76,217.72,5.72129264]
[1757416156831,7.46,217.76,217.73,3.66198556]
[1757416157022,0.03409503,217.77,217.72,5.72129264]
[1757416157228,7.46,217.76,217.73,3.66198556]
[1757416157424,7.46,217.76,217.72,5.72129264]
[1757416157730,7.46,217.76,217.73,3.79]
[1757416158437,0.03409503,217.77,217.74,1.93129264]
[1757416158629,0.03409503,217.77,217.75,3.79]
[1757416158931,0.03409503,217.77,217.74,1.93129264]
[1757416159128,0.03409503,217.77,217.75,3.79]
[1757416160735,0.03409503,217.77,217.74,6.06389264]
[1757416160935,0.03409503,217.77,217.76,3.79]
[1757416162232,0.03409503,217.77,217.74,9.85389264]
[1757416162432,0.03409503,217.77,217.75,3.66969367]
[1757416162636,0.03409503,217.77,217.76,3.66969367]
[1757416166137,0.03409503,217.77,217.76,7.45969367]
[1757416168234,0.03409503,217.77,217.76,9.39098631]
[1757416172839,7.49409503,217.77,217.76,3.66969367]
[1757416173238,7.46,217.76,217.73,3.79]
[1757416173442,7.46,217.76,217.74,3.67550674]
[1757416173741,7.46,217.76,217.75,3.67550674]
[1757416176748,7.46,217.76,217.73,3.79]
[1757416176946,7.46,217.76,217.74,3.67548798]
[1757416177141,7.46,217.76,217.72,1.93129264]
[1757416177142,7.46,217.76,217.72,5.72129264]
[1757416177345,0.03409503,217.77,217.73,3.67548798]
[1757416177544,7.46,217.76,217.74,3.67548798]
[1757416177745,7.46,217.76,217.73,3.79]
[1757416177946,7.46,217.76,217.74,3.67536281]
[1757416178142,7.46,217.76,217.73,3.79]
[1757416178446,7.46,217.76,217.74,3.67536281]
[1757416178646,7.46,217.76,217.73,3.79]
[1757416178946,7.46,217.76,217.74,3.67525325]
[1757416179142,7.46,217.76,217.73,3.79]
[1757416179445,0.03409503,217.77,217.72,1.93129264]
[1757416179446,0.03409503,217.77,217.75,3.79]
[1757416180148,0.03409503,217.77,217.76,9.39628072]
[1757416181947,7.46,217.86,217.79,3.79]
[1757416182148,7.46,217.86,217.8,5.60525629]
[1757416182346,7.46,217.87,217.81,3.67396365]
[1757416182542,7.46,217.87,217.8,1.93129264]
[1757416182746,7.46,217.87,217.81,3.67285849]
[1757416182949,7.46,217.87,217.8,1.93129264]
[1757416183339,1.93129264,217.88,217.82,0.03098537]
[1757416183751,7.08,217.87,217.82,0.03098537]
[1757416187757,1.93129264,217.88,217.82,0.03098537]
[1757416188256,7.08,217.87,217.82,0.03098537]
[1757416190058,1.93129264,217.88,217.82,0.03098537]
[1757416190354,7.08,217.87,217.82,0.03098537]
[1757416198766,1.93129264,217.88,217.82,0.03098537]
[1757416198971,7.08,217.87,217.82,0.03098537]
[1757416199172,1.93129264,217.88,217.82,0.03098537]
[1757416199772,7.08,217.87,217.82,0.03098537]
[1757416200171,1.93129264,217.88,217.82,0.03098537]
[1757416200370,7.08,217.87,217.82,0.03098537]
[1757416200571,7.08,217.87,217.83,3.78]
[1757416200775,7.08,217.94,217.85,3.78]
[1757416201072,7.08,217.97,217.9,1.93129264]
[1757416201266,7.08,217.97,217.88,4.1299]
[1757416201467,1.93129264,218.0,217.92,1.93129264]
[1757416201772,7.08,217.99,217.92,1.93129264]
[1757416201973,7.08,217.97,217.83,3.78]
[1757416202273,7.08,217.93,217.86,5.74129264]
[1757416202476,7.08,217.95,217.88,1.93129264]
[1757416202674,7.08,217.95,217.89,1.93129264]
[1757416204976,7.08,217.95,217.87,5.74129264]
[1757416205273,7.08,217.95,217.88,4.22731117]
[1757416205577,7.08,217.95,217.87,5.74129264]
[1757416205777,7.08,217.95,217.88,4.22570955]
[1757416205979,7.08,217.95,217.87,3.81]
[1757416206280,7.08,217.95,217.88,6.15705741]
[1757416206579,7.08,217.95,217.88,1.93129264]
[1757416209980,7.08,217.95,217.87,3.81]
[1757416210176,1.93129264,217.92,217.83,1.93129264]
[1757416210384,7.08,217.91,217.84,4.22122752]
[1757416210576,7.08,217.91,217.83,1.93129264]
[1757416210776,7.08,217.91,217.84,4.22154489]
[1757416210983,7.08,217.91,217.83,1.93129264]
[1757416211282,1.93129264,217.9,217.84,4.22154489]
[1757416211488,7.08,217.89,217.82,3.81]
[1757416211680,7.08,217.89,217.83,4.22143237]
[1757416211876,1.93129264,217.9,217.84,4.22143237]
[1757416212076,7.08,217.89,217.82,3.81]
[1757416212274,7.08,217.89,217.83,4.2212904]
[1757416212481,7.08,217.92,217.82,3.81]
[1757416212684,7.08,217.92,217.83,4.2216344]
[1757416212880,7.08,217.92,217.82,3.81]
[1757416213086,7.08,217.92,217.83,4.22163571]
[1757416213281,7.08,217.92,217.82,3.81]
[1757416213479,7.08,217.92,217.83,4.22170592]
[1757416213680,7.08,217.92,217.82,3.81]
[1757416213881,7.08,217.92,217.83,4.22170395]
[1757416214081,7.08,217.92,217.82,3.81]
[1757416214280,7.08,217.92,217.83,4.2215962]
[1757416214485,7.08,217.92,217.82,3.81]
[1757416214683,7.08,217.92,217.83,4.22179182]
[1757416214884,7.08,217.92,217.82,3.81]
[1757416215180,7.08,217.92,217.84,3.81]
[1757416215380,7.08,217.92,217.86,3.81]
[1757416215685,7.13,217.98,217.88,3.81]
[1757416218186,7.13,217.98,217.89,4.22081344]
[1757416218386,7.13,217.98,217.88,3.81]
[1757416218586,7.13,217.98,217.89,4.2205245]
[1757416218782,7.13,217.98,217.88,3.81]
[1757416218985,7.13,217.98,217.89,4.2205245]
[1757416219184,7.13,217.98,217.88,3.81]
[1757416219376,7.13,217.98,217.89,4.22072494]
[1757416219687,7.13,217.98,217.88,3.81]
[1757416219883,7.13,217.98,217.89,4.22070581]
[1757416220189,7.13,217.98,217.88,3.81]
[1757416220487,7.13,217.98,217.89,4.22128059]
[1757416220690,7.13,217.98,217.88,3.81]
[1757416220886,7.13,217.98,217.89,4.22102432]
[1757416221086,7.13,217.98,217.88,3.81]
[1757416221387,7.13,217.98,217.89,4.2216921]
[1757416221583,3.01503033,217.96,217.88,3.81]
[1757416221784,7.13,217.95,217.85,3.81]
[1757416221988,7.13,217.95,217.86,4.22164727]
[1757416222189,7.13,217.95,217.87,4.22164727]
[1757416222488,7.13,217.95,217.88,4.22164727]
[1757416222790,7.13,217.95,217.85,3.81]
[1757416223089,7.13,217.95,217.86,4.22254946]
[1757416223288,7.13,217.95,217.87,4.22254946]
[1757416223493,7.13,217.95,217.88,4.22254946]
[1757416223788,7.13,217.95,217.85,3.81]
[1757416223989,7.13,217.95,217.86,4.22369123]
[1757416224189,7.13,217.95,217.87,4.22369123]
[1757416224391,7.13,217.95,217.88,4.22369123]
[1757416224592,7.13,217.95,217.85,3.81]
[1757416224791,7.13,217.95,217.86,4.22499921]
[1757416225090,7.13,217.95,217.85,3.81]
[1757416225091,7.13,217.95,217.87,4.22499921]
[1757416225284,7.13,217.95,217.88,4.22499921]
[1757416225484,7.13,217.95,217.85,3.81]
[1757416225686,7.13,217.95,217.86,4.22536697]
[1757416225990,7.13,217.95,217.87,4.22536697]
[1757416226190,7.13,217.95,217.88,4.22536697]
[1757416226494,7.13,217.95,217.85,3.81]
[1757416226690,7.13,217.95,217.86,4.2258748]
[1757416226989,7.13,217.95,217.87,4.2258748]
[1757416227188,7.13,217.95,217.88,4.2258748]
[1757416227391,7.13,217.95,217.85,3.81]
[1757416227587,7.13,217.95,217.86,4.24324371]
[1757416227788,7.13,217.95,217.87,4.24324371]
[1757416227987,7.13,217.95,217.88,4.24324371]
[1757416228190,7.13,217.95,217.85,3.81]
[1757416228390,7.13,217.95,217.86,4.24341941]
[1757416228591,7.13,217.95,217.87,4.24341941]
[1757416228788,7.13,217.95,217.88,4.24341941]
[1757416228994,7.13,217.95,217.85,3.81]
[1757416229194,7.13,217.95,217.86,4.24336392]
[1757416229493,7.13,217.95,217.87,4.24336392]
[1757416229695,7.13,217.95,217.85,3.81]
[1757416229696,7.13,217.95,217.88,4.24336392]
[1757416229892,7.13,217.95,217.85,3.81]
[1757416230092,7.13,217.95,217.86,4.24355465]
[1757416230392,7.13,217.95,217.87,4.24355465]
[1757416230599,7.13,217.95,217.88,4.24355465]
[1757416230792,7.13,217.95,217.85,3.81]
[1757416230994,7.13,217.95,217.86,4.24404364]
[1757416231294,7.13,217.95,217.87,4.24404364]
[1757416231494,7.13,217.95,217.88,4.24404364]
[1757416231691,7.13,217.95,217.85,3.81]
[1757416231892,7.13,217.95,217.86,4.244638]
[1757416232090,7.13,217.95,217.87,4.244638]
[1757416232296,7.13,217.95,217.88,4.244638]
[1757416232497,7.13,217.95,217.85,3.81]
[1757416232699,7.13,217.95,217.86,4.24509456]
[1757416232898,7.13,217.95,217.87,4.24509456]
[1757416233199,7.13,217.95,217.88,4.24509456]
[1757416233397,7.13,217.95,217.85,3.81]
[1757416233700,7.13,217.95,217.86,4.24556394]
[1757416233900,7.13,217.95,217.87,8.05556394]
[1757416234100,7.13,217.95,217.88,4.24556394]
[1757416234295,7.13,217.95,217.87,3.81]
[1757416234498,7.13,217.95,217.88,4.24606886]
[1757416234700,7.13,217.95,217.87,3.81]
[1757416234899,7.13,217.95,217.88,4.24606754]
[1757416235095,7.13,217.95,217.87,3.81]
[1757416235296,7.13,217.95,217.88,4.24649134]
[1757416235500,7.13,217.95,217.89,4.24649134]
[1757416235702,7.13,217.95,217.87,3.81]
[1757416235896,7.13,217.95,217.88,4.24663797]
[1757416236200,7.13,217.95,217.89,4.24663797]
[1757416236401,7.13,217.95,217.87,3.81]
[1757416238600,7.13,217.95,217.88,4.24881476]
[1757416238904,7.13,217.95,217.89,4.24881476]
[1757416239203,7.13,217.95,217.9,7.9140499]
[1757416239404,7.13,217.95,217.91,7.9140499]
[1757416239601,7.13,217.95,217.92,4.24881476]
[1757416239802,3.01503033,218.03,217.93,4.24881476]
[1757416240005,3.01503033,218.03,217.94,4.24881476]
[1757416240196,3.01503033,218.03,217.91,4.1294]
[1757416240400,3.01503033,218.03,217.92,4.24662962]
[1757416240603,3.01503033,218.03,217.93,4.24662962]
[1757416240801,3.01503033,218.03,217.94,4.24662962]
[1757416240997,3.01503033,218.03,217.91,4.1294]
[1757416241196,3.01503033,218.03,217.92,8.37572962]
[1757416241400,3.01503033,218.06,217.93,4.24662962]
[1757416241600,3.01503033,218.08,217.94,4.24662962]
[1757416241806,3.01503033,218.08,217.95,4.24662962]
[1757416242000,3.01503033,218.08,217.96,4.24662962]
[1757416242201,3.01503033,218.08,217.97,4.24710725]
[1757416242401,3.01503033,218.08,217.98,4.24710725]
[1757416242601,3.01503033,218.08,217.94,4.1288]
[1757416242804,3.01503033,218.08,217.95,4.24496721]
[1757416243004,3.01503033,218.08,217.96,4.24496721]
[1757416243206,3.01503033,218.08,217.97,4.24496721]
[1757416243403,7.63303186,218.14,217.98,4.24496721]
[1757416243612,3.01503033,218.09,217.94,4.1288]
[1757416243806,3.01503033,218.09,217.95,4.24372234]
[1757416244008,3.01503033,218.09,217.96,4.24372234]
[1757416244206,3.01503033,218.09,217.97,4.24372234]
[1757416244407,3.01503033,218.09,217.98,4.24372234]
[1757416244607,3.01503033,218.09,217.94,4.1288]
[1757416244906,3.01503033,218.1,217.95,11.38648232]
[1757416245103,3.01503033,218.1,217.96,4.24285199]
[1757416245305,3.01503033,218.1,217.97,4.24285199]
[1757416245511,3.01503033,218.1,217.98,4.24285199]
[1757416245705,3.01503033,218.1,217.95,3.01503033]
[1757416245902,3.01503033,218.1,217.96,4.24077736]
[1757416246107,3.01503033,218.1,217.97,4.24077736]
[1757416246305,3.01503033,218.1,217.98,4.24077736]
[1757416246504,3.01503033,218.1,217.99,4.24077736]
[1757416246715,163.21232591,218.12,218.0,4.23830414]
[1757416246909,163.21232591,218.12,218.01,4.23830414]
[1757416247108,163.21232591,218.12,218.02,4.23830414]
[1757416247310,163.21232591,218.12,217.97,3.01503033]
[1757416247311,163.21232591,218.12,217.99,4.1278]
[1757416247510,163.21232591,218.12,218.0,4.23531776]
[1757416247711,163.21232591,218.12,218.01,4.23531776]
[1757416247906,163.21232591,218.12,218.02,4.23531776]
[1757416248214,160.19729558,218.12,217.97,7.14333033]
[1757416248413,160.19729558,218.12,217.98,4.23277936]
[1757416248613,160.19729558,218.12,217.99,4.23277936]
[1757416248812,160.19729558,218.12,218.0,4.23277936]
[1757416249016,3.01503033,218.1,218.01,4.23277936]
[1757416249315,3.01503033,218.1,217.96,3.01503033]
[1757416249615,3.01503033,218.1,217.97,4.23116349]
[1757416249809,3.01503033,218.1,217.98,4.23116349]
[1757416250010,3.01503033,218.1,217.99,4.23116349]
[1757416250211,3.01503033,218.1,218.0,4.23116349]
[1757416250411,3.01503033,218.1,217.96,3.01503033]
[1757416250612,3.01503033,218.1,217.97,4.22948595]
[1757416250912,3.01503033,218.1,217.98,4.22948595]
[1757416251113,3.01503033,218.1,217.99,4.22948595]
[1757416251419,3.01503033,218.1,218.0,4.22948595]
[1757416251617,3.01503033,218.1,217.96,3.01503033]
[1757416251816,3.01503033,218.1,217.97,4.22799644]
[1757416252009,3.01503033,218.1,217.98,4.22799644]
[1757416252213,3.01503033,218.1,217.99,4.22799644]
[1757416252408,3.01503033,218.07,217.93,7.14413033]
[1757416252614,3.01503033,218.03,217.94,4.22686187]
[1757416252810,3.01503033,218.03,217.87,3.01503033]
[1757416253019,3.01503033,218.03,217.88,4.22750856]
[1757416253216,3.01503033,218.03,217.89,4.22750856]
[1757416253417,3.01503033,218.03,217.9,4.22750856]
[1757416253618,3.01503033,218.03,217.91,4.22750856]
[1757416253808,3.01503033,218.03,217.92,4.22750856]
[1757416254014,3.01503033,218.03,217.93,4.22750856]
[1757416254214,3.01503033,218.03,217.89,4.1298]
[1757416254422,3.01503033,218.03,217.9,4.22709029]
[1757416254622,3.01503033,218.03,217.91,4.22709029]
[1757416254919,3.01503033,218.03,217.92,4.22709029]
[1757416255110,3.01503033,218.03,217.93,4.22709029]
[1757416255310,3.01503033,218.03,217.89,4.1298]
[1757416255516,3.01503033,218.03,217.9,4.22733357]
[1757416255716,3.01503033,218.03,217.91,4.22733357]
[1757416256011,3.01503033,218.03,217.92,4.22733357]
[1757416256218,3.01503033,218.03,217.93,4.22733357]
[1757416256524,3.01503033,218.03,217.94,4.22765024]
[1757416256717,3.01503033,218.03,217.89,4.1298]
[1757416256917,3.01503033,218.03,217.9,4.2276509]
[1757416257124,3.01503033,218.03,217.91,4.2276509]
[1757416257323,3.01503033,218.03,217.92,4.2276509]
[1757416257523,160.19729558,218.12,217.93,4.2276509]
[1757416257824,3.01503033,218.01,217.89,4.1298]
[1757416258027,3.01503033,218.01,217.9,4.22848457]
[1757416258322,3.01503033,218.01,217.91,4.22848457]
[1757416258624,3.01503033,218.01,217.92,4.22848457]
[1757416258921,3.01503033,218.01,217.93,4.22848457]
[1757416259124,3.01503033,218.01,217.89,4.1298]
[1757416259324,3.01503033,218.01,217.9,4.22921219]
[1757416259529,3.01503033,218.01,217.91,4.22921219]
[1757416259824,3.01503033,218.01,217.92,4.22921219]
[1757416260024,3.01503033,218.01,217.93,4.22921219]
[1757416260323,3.01503033,218.01,217.87,4.1302]
[1757416260527,3.01503033,218.01,217.88,4.23035093]
[1757416260723,3.01503033,218.01,217.89,4.23035093]
[1757416260923,3.01503033,218.01,217.9,4.23035093]
[1757416261219,3.01503033,218.01,217.91,4.23035093]
[1757416261424,7.63303186,218.11,217.78,9.47948]
[1757416261425,3.01503033,217.95,217.78,9.47948]
[1757416261625,3.01503033,217.95,217.79,10.89674329]
[1757416261827,3.01503033,217.92,217.8,7.88171296]
[1757416262120,3.01503033,217.92,217.81,4.23135022]
[1757416262324,3.01503033,217.92,217.82,4.23135022]